bitfinex-derivatives/quotes_SOLF0:USTF0_20241222
["timestamp","ask_amount","ask_price","bid_price","bid_amount"]
[1734884200896,3.3,181.77,181.68,42.73631112]
[1734884201105,3.3,181.8,181.68,42.73631112]
[1734884201498,2.7525,181.79,181.68,42.73631112]
[1734884201699,3.3,181.8,181.68,42.73631112]
[1734884202303,3.3,181.8,181.68,37.4731907]
[1734884202602,3.3,181.8,181.69,5.26019266]
[1734884202800,2.7525,181.79,181.69,5.26019266]
[1734884203099,1.6167,181.87,181.71,34.1731907]
[1734884203300,3.3,181.86,181.71,34.1731907]
[1734884203505,2.7519,181.83,181.78,2.7525]
[1734884204702,2.7519,181.83,181.79,2.7524]
[1734884205401,6.0519,181.83,181.79,2.7524]
[1734884206104,3.3,181.86,181.74,35.8821907]
[1734884206308,34.3909907,181.92,181.77,34.1731907]
[1734884206502,0.92391295,181.91,181.78,4.9399]
[1734884206701,3.3,181.9,181.8,34.1731907]
[1734884206905,3.3,181.9,181.81,6.86210683]
[1734884207199,2.7508,181.9,181.86,2.7513]
[1734884207911,2.7512,181.87,181.83,4.3758]
[1734884208412,3.3,181.91,181.84,5.25538574]
[1734884208614,2.7511,181.88,181.84,8.00708574]
[1734884208814,2.7511,181.88,181.84,2.7517]
[1734884209308,3.3,181.91,181.81,1.6029]
[1734884209512,34.1731907,181.89,181.8,18.51329516]
[1734884209911,34.1731907,181.89,181.79,18.51329516]
[1734884210713,3.3,181.91,181.78,1.6399]
[1734884210912,0.92396062,181.9,181.78,1.6399]
[1734884211117,0.92396062,181.9,181.79,5.26026303]
[1734884211614,3.3,181.91,181.78,1.6399]
[1734884211815,2.7514,181.86,181.81,2.752]
[1734884212018,3.3,181.86,181.78,1.6399]
[1734884212311,2.7517,181.84,181.79,5.26682966]
[1734884212519,37.4731907,181.86,181.79,5.26682966]
[1734884212707,34.1731907,181.83,181.76,19.05972848]
[1734884212913,2.7527,181.77,181.76,19.05972848]
[1734884213112,6.0527,181.77,181.76,19.05972848]
[1734884213310,6.0527,181.77,181.71,1.7422]
[1734884213311,3.3,181.77,181.71,1.7422]
[1734884213515,2.7531,181.75,181.71,1.7422]
[1734884213915,3.3,181.77,181.71,1.7422]
[1734884214517,3.3,181.77,181.72,5.27783455]
[1734884214916,2.7531,181.75,181.72,5.27783455]
[1734884215119,2.7531,181.75,181.71,1.7422]
[1734884215420,3.3,181.77,181.71,1.7422]
[1734884215716,3.3,181.77,181.72,5.28166603]
[1734884216016,3.3,181.77,181.71,1.7422]
[1734884216517,2.7529,181.76,181.71,4.4958]
[1734884216720,34.1731907,181.86,181.72,5.28536912]
[1734884217015,4.22426482,181.85,181.75,2.753]
[1734884217216,4.22426482,181.84,181.76,5.28536912]
[1734884217416,3.3,181.84,181.76,5.28536912]
[1734884217617,3.3,181.84,181.74,2.7531]
[1734884218118,3.3,181.84,181.75,5.28644627]
[1734884218321,3.3,181.84,181.76,5.28644627]
[1734884218713,3.3,181.84,181.74,2.7531]
[1734884219014,3.3,181.84,181.75,5.28664665]
[1734884219413,3.3,181.84,181.76,5.28664665]
[1734884219620,3.3,181.84,181.71,1.7422]
[1734884219819,3.3,181.84,181.72,5.28624193]
[1734884220116,34.1731907,181.86,181.73,5.28624193]
[1734884220323,3.3,181.83,181.74,5.28624193]
[1734884220617,2.7524,181.8,181.75,8.03924193]
[1734884220810,3.3,181.83,181.75,8.03924193]
[1734884221010,3.3,181.83,181.76,5.28624193]
[1734884221213,2.7524,181.8,181.77,5.28624193]
[1734884221510,3.3,181.83,181.78,5.28624193]
[1734884221710,2.752,181.82,181.78,5.28624193]
[1734884221914,3.3,181.85,181.79,5.28624193]
[1734884222316,3.3,181.85,181.8,5.28624193]
[1734884222619,2.7517,181.84,181.81,5.28624193]
[1734884222817,3.3,181.85,181.81,5.28624193]
[1734884223117,3.3,181.85,181.82,5.28624193]
[1734884223317,2.7514,181.86,181.82,5.28624193]
[1734884223516,3.3,181.89,181.82,5.28624193]
[1734884223719,34.1731907,181.95,181.83,6.88724193]
[1734884223912,2.7511,181.88,181.84,2.7517]
[1734884224114,2.7511,181.88,181.85,5.28624193]
[1734884224615,2.7511,181.88,181.86,5.28624193]
[1734884225014,1.89406,181.97,181.83,1.601]
[1734884225214,3.3,181.96,181.85,1.6539]
[1734884225610,2.75,181.95,181.86,5.27669755]
[1734884225813,3.3,181.95,181.86,5.27669755]
[1734884226014,3.3,181.98,181.87,5.27669755]
[1734884226317,2.7497,181.97,181.88,39.44988825]
[1734884226514,3.3,181.99,181.88,39.44988825]
[1734884226815,64.84896768,182.06,181.91,34.1731907]
[1734884227022,0.92320909,182.05,181.92,8.46769755]
[1734884227220,2.7493,182.0,181.92,8.46769755]
[1734884227415,2.7493,182.0,181.93,5.27669755]
[1734884227819,2.7493,182.0,181.96,2.7498]
[1734884228316,3.1916,182.1,181.94,1.6987]
[1734884228317,2.7487,182.04,181.98,2.7494]
[1734884228518,2.7487,182.04,181.94,1.6987]
[1734884228519,34.1731907,182.13,181.97,34.1731907]
[1734884228716,4.22288412,182.12,181.98,5.25864561]
[1734884228911,4.22288412,182.12,181.97,34.1731907]
[1734884228912,0.92288412,182.11,181.99,4.99822561]
[1734884229218,0.92288412,182.11,181.97,34.1731907]
[1734884229621,0.92288412,182.12,182.0,34.1731907]
[1734884229816,2.7473,182.14,182.06,2.7484]
[1734884230117,64.60906143,182.22,182.06,37.4731907]
[1734884230423,2.7461,182.21,182.12,2.7473]
[1734884230622,33.73587073,182.22,182.13,3.2518]
[1734884230818,33.73587073,182.22,182.07,35.9068907]
[1734884230819,34.1731907,182.21,182.07,1.7337]
[1734884231019,34.1731907,182.18,182.07,1.7337]
[1734884231212,3.24,182.17,182.07,1.7337]
[1734884231613,2.7473,182.14,182.07,1.7337]
[1734884232027,2.7473,182.14,182.07,0.7337]
[1734884232417,3.24,182.13,182.07,0.7337]
[1734884232622,5.9873,182.13,182.07,0.7337]
[1734884232819,3.24,182.13,182.07,0.7337]
[1734884233923,2.7475,182.12,182.07,0.7337]
[1734884234223,3.24,182.14,182.07,0.7337]
[1734884234824,3.24,182.14,182.02,2.7488]
[1734884235018,3.24,182.14,182.01,3.2518]
[1734884235323,2.7481,182.08,182.01,3.2518]
[1734884235518,5.9881,182.08,182.01,3.2518]
[1734884235715,5.9881,182.08,182.02,2.7489]
[1734884235922,3.24,182.08,182.01,3.2518]
[1734884236118,3.1839,182.17,182.01,3.2518]
[1734884236317,3.24,182.16,182.06,2.7484]
[1734884236520,3.24,182.15,182.06,2.7484]
[1734884236922,1.6149,182.17,182.06,34.1731907]
[1734884237117,3.22,182.16,182.06,34.1731907]
[1734884237421,2.7477,182.11,182.06,34.1731907]
[1734884237730,3.22,182.16,182.03,34.1731907]
[1734884237926,3.22,182.16,182.1,2.7477]
[1734884238227,3.22,182.16,182.07,8.52835374]
[1734884238627,3.22,182.16,182.08,2.748]
[1734884239025,3.22,182.16,182.06,34.1731907]
[1734884239223,3.22,182.16,182.07,8.52350383]
[1734884239723,3.22,182.16,182.06,34.1731907]
[1734884239919,3.1839,182.24,182.09,2.7479]
[1734884240228,3.22,182.23,182.09,34.1731907]
[1734884240528,3.22,182.23,182.1,1.7396]
[1734884241026,3.22,182.23,182.12,34.1731907]
[1734884241330,1.5701,182.3,182.15,34.1731907]
[1734884241629,4.14201206,182.29,182.15,34.1731907]
[1734884241830,35.09516699,182.28,182.13,1.5877]
[1734884242032,34.1731907,182.28,182.13,1.5877]
[1734884242323,3.22,182.27,182.15,34.1731907]
[1734884242523,3.22,182.28,182.18,34.1731907]
[1734884243029,3.22,182.28,182.19,2.7463]
[1734884243421,3.22,182.28,182.16,2.7468]
[1734884243823,3.22,182.28,182.15,34.1731907]
[1734884244024,3.22,182.28,182.17,5.30542239]
[1734884244227,3.22,182.28,182.14,8.49204233]
[1734884244625,3.22,182.28,182.15,5.30333919]
[1734884244829,3.22,182.28,182.13,1.5877]
[1734884245327,3.22,182.27,182.15,34.1731907]
[1734884245525,37.4181907,182.31,182.17,2.7467]
[1734884245731,3.22,182.27,182.15,34.1731907]
[1734884245926,3.22,182.27,182.18,34.1731907]
[1734884246134,3.22,182.27,182.21,2.7461]
[1734884246529,3.22,182.27,182.19,1.6447]
[1734884247128,3.22,182.27,182.2,4.4698]
[1734884247333,3.22,182.28,182.2,1.7236]
[1734884248427,3.22,182.28,182.21,2.7461]
[1734884248827,3.22,182.28,182.2,1.7236]
[1734884249237,3.22,182.28,182.15,34.1731907]
[1734884250027,3.22,182.28,182.16,5.28054878]
[1734884250233,3.22,182.28,182.15,34.1731907]
[1734884250430,3.22,182.28,182.18,34.1731907]
[1734884250830,3.22,182.28,182.2,2.7461]
[1734884251034,1.6803,182.31,182.2,2.7461]
[1734884251234,3.22,182.3,182.2,2.7461]
[1734884251537,3.22,182.3,182.22,2.7458]
[1734884252134,88.80565152,182.36,182.21,34.1731907]
[1734884252337,54.63246082,182.36,182.22,1.7084]
[1734884252534,3.22,182.35,182.24,34.1731907]
[1734884252735,3.22,182.35,182.25,1.6445]
[1734884252938,3.22,182.35,182.26,2.7452]
[1734884253535,1.6826,182.36,182.25,1.6445]
[1734884253739,1.6826,182.36,182.27,2.7452]
[1734884253740,3.22,182.35,182.27,2.7452]
[1734884254040,0.30218,182.37,182.26,34.1731907]
[1734884254834,0.30218,182.37,182.27,5.25852935]
[1734884255030,0.30218,182.37,182.26,36.9184907]
[1734884255636,0.30218,182.37,182.26,34.1731907]
[1734884255842,0.30218,182.37,182.25,1.6445]
[1734884256245,0.30218,182.37,182.25,4.3899]
[1734884256437,0.30218,182.37,182.25,1.6445]
[1734884256943,3.22,182.36,182.28,2.7449]
[1734884257137,0.30218,182.37,182.26,34.1731907]
[1734884257342,0.30218,182.37,182.29,34.1731907]
[1734884258139,0.30218,182.37,182.3,2.7446]
[1734884258443,0.30218,182.37,182.32,34.1731907]
[1734884259338,3.22,182.44,182.32,34.1731907]
[1734884259537,3.22,182.44,182.33,5.25320456]
[1734884259841,34.1731907,182.49,182.32,34.1731907]
[1734884260042,3.22,182.48,182.32,34.1731907]
[1734884260241,3.22,182.48,182.35,34.1731907]
[1734884260542,3.26,182.57,182.44,34.1731907]
[1734884260839,3.26,182.59,182.47,34.1731907]
[1734884261044,3.26,182.61,182.47,34.1731907]
[1734884261441,3.2039,182.63,182.52,2.7416]
[1734884261643,3.26,182.6,182.48,5.24742817]
[1734884262058,3.26,182.6,182.49,5.24742817]
[1734884262247,3.26,182.6,182.47,34.1731907]
[1734884262947,34.1731907,182.59,182.45,3.3708]
[1734884263144,3.26,182.6,182.34,91.2531907]
[1734884263145,34.1731907,182.56,182.4,34.1731907]
[1734884263342,3.26,182.55,182.4,34.1731907]
[1734884263848,4.8216,182.55,182.4,34.1731907]
[1734884264050,3.26,182.55,182.43,34.1731907]
[1734884264549,3.26,182.57,182.44,1.6394]
[1734884264750,3.26,182.57,182.45,1.6709]
[1734884265047,3.26,182.57,182.45,3.2606]
[1734884265449,3.26,182.57,182.46,34.1731907]
[1734884267149,0.27,182.58,182.49,34.1731907]
[1734884267950,0.27,182.58,182.5,2.742]
[1734884268248,0.27,182.58,182.49,34.1731907]
[1734884268743,0.27,182.58,182.49,36.9152907]
[1734884268951,0.27,182.58,182.49,34.1731907]
[1734884269147,0.27,182.58,182.47,2.7425]
[1734884269846,0.27,182.58,182.46,36.9157907]
[1734884270050,0.27,182.58,182.46,34.1731907]
[1734884270353,0.27,182.58,182.47,5.27441864]
[1734884270753,34.1731907,182.54,182.48,5.27441864]
[1734884270952,6.4231,182.53,182.38,8.45415564]
[1734884271155,6.4231,182.53,182.38,11.19785564]
[1734884271347,4.8231,182.53,182.37,37.4552907]
[1734884272049,34.1731907,182.51,182.37,3.2821]
[1734884272253,0.92072932,182.5,182.37,3.2821]
[1734884272953,34.1731907,182.51,182.37,3.2821]
[1734884273158,0.92079308,182.5,182.37,3.2821]
[1734884273651,34.1731907,182.51,182.37,3.2821]
[1734884273850,34.1731907,182.48,182.37,3.2821]
[1734884274048,3.26,182.47,182.37,3.2821]
[1734884274446,3.26,182.48,182.38,34.1731907]
[1734884274647,3.26,182.48,182.37,37.4552907]
[1734884276663,3.26,182.48,182.37,3.2821]
[1734884277858,34.1731907,182.51,182.37,3.2821]
[1734884278060,3.26,182.5,182.37,3.2821]
[1734884278260,3.26,182.49,182.38,2.7438]
[1734884278564,3.26,182.49,182.37,3.2821]
[1734884279065,34.1731907,182.48,182.37,3.2821]
[1734884279467,0.92096431,182.47,182.33,1.6165]
[1734884279867,34.1731907,182.48,182.33,1.6165]
[1734884280069,0.92098696,182.47,182.33,1.6165]
[1734884280968,34.1731907,182.48,182.33,1.6165]
[1734884282067,34.1731907,182.45,182.33,1.6165]
[1734884282271,3.26,182.44,182.33,1.6165]
[1734884282667,34.1731907,182.45,182.33,1.6165]
[1734884282859,3.26,182.44,182.33,1.6165]
[1734884283062,3.26,182.43,182.33,1.6165]
[1734884283259,34.1731907,182.48,182.33,1.6165]
[1734884283260,34.1731907,182.48,182.34,39.44372275]
[1734884283470,3.26,182.48,182.38,2.7438]
[1734884283670,37.4331907,182.48,182.35,5.27053205]
[1734884284066,3.26,182.48,182.36,5.27053205]
[1734884284263,3.26,182.48,182.37,34.1731907]
[1734884284572,3.26,182.5,182.37,39.44372275]
[1734884284771,3.26,182.5,182.38,5.27053205]
[1734884284972,3.26,182.5,182.39,5.27053205]
[1734884285465,3.26,182.5,182.4,5.27053205]
[1734884285666,3.26,182.5,182.41,5.27053205]
[1734884285966,3.26,182.5,182.42,5.27053205]
[1734884286169,3.26,182.5,182.43,5.27053205]
[1734884286472,3.26,182.5,182.34,34.1731907]
[1734884286967,34.1731907,182.52,182.34,34.1731907]
[1734884286968,3.26,182.49,182.39,2.7435]
[1734884287172,3.26,182.49,182.4,5.28340073]
[1734884287367,3.26,182.49,182.41,2.7432]
[1734884287568,3.26,182.49,182.41,10.15220073]
[1734884288070,3.26,182.49,182.42,5.28340073]
[1734884288470,3.26,182.49,182.43,5.28340073]
[1734884288969,3.26,182.49,182.44,5.28340073]
[1734884289272,3.26,182.49,182.41,4.8688]
[1734884289471,3.26,182.49,182.42,5.28728555]
[1734884289877,3.26,182.49,182.43,5.28728555]
[1734884290176,3.26,182.49,182.41,3.2337]
[1734884290565,3.26,182.49,182.42,5.28989208]
[1734884290769,3.26,182.49,182.41,3.2337]
[1734884291472,3.26,182.49,182.42,6.89827718]
[1734884291675,3.26,182.49,182.43,5.29137718]
[1734884292069,3.26,182.49,182.42,1.6069]
[1734884292767,3.26,182.49,182.43,5.29463541]
[1734884292969,34.1731907,182.53,182.43,5.29463541]
[1734884293164,3.46,182.54,182.44,5.29463541]
[1734884293368,0.27,182.58,182.45,5.29463541]
[1734884293572,4.38051488,182.57,182.46,5.29463541]
[1734884293774,3.46,182.57,182.47,5.29463541]
[1734884293970,34.1731907,182.56,182.47,5.29463541]
[1734884294175,0.92046797,182.55,182.42,1.6069]
[1734884294474,0.92046797,182.55,182.43,5.29886114]
[1734884294674,0.92046797,182.55,182.44,5.29886114]
[1734884294875,34.1731907,182.56,182.44,5.29886114]
[1734884295070,0.92046152,182.55,182.45,5.29886114]
[1734884295271,3.46,182.57,182.46,5.29886114]
[1734884295578,0.9204413,182.56,182.46,5.29886114]
[1734884295776,0.9204413,182.56,182.47,5.29886114]
[1734884295976,3.46,182.57,182.47,5.29886114]
[1734884296175,0.27,182.58,182.48,5.29886114]
[1734884296370,3.46,182.57,182.48,5.29886114]
[1734884296569,3.46,182.57,182.49,5.29886114]
[1734884296777,3.46,182.57,182.5,5.29886114]
[1734884297076,3.46,182.57,182.51,5.29886114]
[1734884297470,3.46,182.57,182.52,5.29886114]
[1734884297678,3.46,182.57,182.53,5.29886114]
[1734884298178,3.46,182.57,182.54,5.29886114]
[1734884298676,3.46,182.57,182.52,1.7218]
[1734884298677,0.27,182.58,182.55,5.29886114]
[1734884299079,0.27,182.58,182.56,5.29886114]
[1734884299479,0.27,182.58,182.57,5.29886114]
[1734884300880,3.46,182.62,182.57,5.29886114]
[1734884301078,0.26937,182.67,182.54,33.73348761]
[1734884301277,3.46,182.65,182.54,33.73348761]
[1734884301479,3.46,182.65,182.55,5.30354298]
[1734884301879,3.46,182.65,182.56,5.30354298]
[1734884302381,3.46,182.65,182.57,5.30354298]
[1734884302782,3.46,182.65,182.58,5.30354298]
[1734884303288,0.26937,182.67,182.59,5.30354298]
[1734884303587,3.72937,182.67,182.6,2.7405]
[1734884303787,0.26937,182.67,182.6,8.04404298]
[1734884303988,0.26937,182.67,182.63,2.74]
[1734884304488,0.26937,182.67,182.61,4.3168]
[1734884304788,0.26937,182.67,182.62,5.28749786]
[1734884305187,0.26937,182.67,182.63,5.28749786]
[1734884305582,0.26937,182.67,182.61,1.5766]
[1734884305983,0.26937,182.67,182.62,5.27955785]
[1734884306183,0.26937,182.67,182.61,1.5766]
[1734884306679,3.72937,182.67,182.61,1.5766]
[1734884308090,0.26937,182.67,182.62,2.7401]
[1734884308588,3.46,182.79,182.64,33.73348761]
[1734884308787,0.91927991,182.78,182.67,33.73348761]
[1734884308987,1.5974,182.8,182.69,2.7392]
[1734884309187,3.46,182.81,182.68,1.644]
[1734884309378,0.91918689,182.8,182.69,1.7385]
[1734884309582,3.46,182.81,182.7,2.739]
[1734884309783,3.46,182.81,182.69,1.7385]
[1734884309982,0.91915916,182.8,182.69,1.7385]
[1734884310185,3.46,182.81,182.69,1.7385]
[1734884310492,3.46,182.81,182.69,4.4776]
[1734884310783,0.919165,182.8,182.69,4.4776]
[1734884310991,0.919165,182.8,182.69,1.7385]
[1734884311188,3.46,182.81,182.69,1.7385]
[1734884311388,33.73348761,182.84,182.69,1.7385]
[1734884311589,0.91910959,182.83,182.7,33.73348761]
[1734884311791,3.46,182.82,182.7,33.73348761]
[1734884312184,3.46,182.82,182.7,36.47248761]
[1734884312884,3.46,182.82,182.69,4.4776]
[1734884313488,3.46,182.82,182.7,2.7389]
[1734884313680,3.46,182.82,182.7,4.3639]
[1734884313880,0.91913767,182.81,182.7,1.625]
[1734884314284,1.571,182.85,182.7,35.35848761]
[1734884314486,3.46,182.84,182.7,35.35848761]
[1734884314686,4.37907136,182.84,182.7,35.35848761]
[1734884314887,33.73348761,182.88,182.71,3.46]
[1734884315191,0.91901262,182.87,182.73,33.73348761]
[1734884315388,3.46,182.87,182.73,33.73348761]
[1734884316089,0.91886943,182.86,182.71,3.46]
[1734884317182,0.91886943,182.86,182.73,2.7384]
[1734884317593,3.46,182.87,182.73,2.7384]
[1734884317792,0.91889328,182.86,182.73,2.7384]
[1734884318092,0.91889328,182.86,182.71,3.46]
[1734884318585,0.91889328,182.86,182.73,2.7386]
[1734884318986,0.91886756,182.85,182.73,2.7386]
[1734884319192,3.46,182.87,182.75,2.7382]
[1734884319483,0.91886789,182.86,182.71,3.46]
[1734884319682,0.91886789,182.86,182.74,2.7383]
[1734884320087,0.91886789,182.86,182.71,37.19348761]
[1734884320692,33.73348761,182.89,182.74,33.73348761]
[1734884320992,3.46,182.88,182.78,2.7378]
[1734884321186,33.73348761,182.89,182.79,5.017]
[1734884321392,3.46,182.88,182.79,5.017]
[1734884321783,3.46,182.88,182.79,7.7545]
[1734884322092,128.88255084,183.02,182.85,33.73348761]
[1734884322285,0.91814871,182.99,182.91,2.7358]
[1734884322696,0.91814871,182.99,182.92,1.6865]
[1734884323102,0.2694,183.0,182.92,4.4222]
[1734884323295,0.2694,183.0,182.92,25.82489974]
[1734884324196,0.2694,183.0,182.95,2.7352]
[1734884324398,0.2694,183.0,182.92,38.72995828]
[1734884324790,0.2694,183.0,182.98,2.7348]
[1734884324991,3.46,183.08,182.95,33.58345828]
[1734884325187,0.91771651,183.07,182.96,1.7426]
[1734884325593,0.91771651,183.07,182.97,3.46]
[1734884325799,4.37762458,183.12,182.98,33.58345828]
[1734884325994,0.91756051,183.11,182.98,35.27545828]
[1734884326394,0.91756051,183.11,183.02,2.7341]
[1734884326590,3.46,183.17,183.02,3.46]
[1734884326796,0.9173566,183.16,183.04,33.58345828]
[1734884326991,34.50081488,183.16,183.03,1.6217]
[1734884327198,33.58345828,183.13,183.03,1.6217]
[1734884327396,4.3773566,183.12,183.03,1.6217]
[1734884327595,0.91746976,183.11,183.03,1.6217]
[1734884327896,3.46,183.12,183.03,1.6217]
[1734884328295,33.58345828,183.16,183.03,1.6217]
[1734884328499,4.37737263,183.15,183.03,1.6217]
[1734884328698,0.91737263,183.14,183.03,1.6217]
[1734884329491,3.46,183.16,183.03,1.6217]
[1734884329697,0.9173204,183.15,183.04,1.7393]
[1734884330000,3.46,183.17,183.07,2.7335]
[1734884330597,3.46,183.17,183.08,2.7333]
[1734884330795,3.46,183.17,183.09,1.6795]
[1734884331405,3.46,183.17,183.07,33.58345828]
[1734884331899,3.46,183.17,183.06,1.6795]
[1734884332298,0.91724246,183.16,183.04,1.7393]
[1734884332492,0.91724246,183.16,182.98,1.5863]
[1734884332493,33.58345828,183.15,182.98,1.5863]
[1734884332691,0.91724246,183.14,182.98,3.3186]
[1734884332900,0.91724246,183.14,182.99,2.7345]
[1734884333300,33.58345828,183.15,182.99,2.7345]
[1734884333301,0.91743799,183.13,183.0,2.7344]
[1734884333507,0.91743799,183.16,182.99,3.46]
[1734884333798,0.91732601,183.15,182.99,3.46]
[1734884334004,3.46,183.16,183.04,33.58345828]
[1734884334200,3.46,183.15,183.04,33.58345828]
[1734884335003,3.46,183.15,183.07,2.7334]
[1734884335398,3.46,183.18,183.08,1.6224]
[1734884336107,0.91722725,183.17,183.03,1.6217]
[1734884336403,0.91722725,183.17,183.03,3.2441]
[1734884336908,33.58345828,183.15,183.03,3.2441]
[1734884337101,0.91722725,183.14,183.03,3.2441]
[1734884337298,3.46,183.13,183.03,3.2441]
[1734884337899,0.91745216,183.12,182.98,35.16975828]
[1734884338103,34.50091044,183.12,182.98,35.16975828]
[1734884338303,33.58345828,183.08,182.96,3.2284]
[1734884338496,3.46,183.07,182.96,3.2284]
[1734884338700,33.58345828,183.05,182.91,1.7005]
[1734884339096,0.91787619,183.04,182.91,1.7005]
[1734884339396,33.58345828,183.05,182.91,1.7005]
[1734884339602,33.58345828,183.01,182.91,1.7005]
[1734884339806,3.46,183.0,182.91,1.7005]
[1734884339999,3.46,183.0,182.9,1.0]
[1734884340200,33.58345828,182.98,182.9,1.0]
[1734884340799,3.46,182.97,182.9,1.0]
[1734884343303,3.46,182.97,182.91,2.7358]
[1734884343608,3.46,183.04,182.95,33.58345828]
[1734884343902,56.86,183.1,182.96,5.1641]
[1734884344113,3.46,183.09,182.98,33.58345828]
[1734884344503,3.46,183.09,182.96,8.6241]
[1734884344703,3.46,183.09,182.96,5.1641]
[1734884345406,3.46,183.09,182.98,2.7348]
[1734884345907,3.46,183.09,183.02,2.7342]
[1734884346111,3.46,183.13,183.01,33.58345828]
[1734884346302,3.46,183.12,183.01,33.58345828]
[1734884346507,3.46,183.14,183.01,33.58345828]
[1734884347209,33.58345828,183.19,183.02,3.46]
[1734884347413,3.46,183.18,183.02,8.62504486]
[1734884347709,3.46,183.18,183.04,33.58345828]
[1734884347909,3.46,183.18,183.06,2.7335]
[1734884348102,3.46,183.18,183.05,1.6564]
[1734884348300,3.46,183.17,183.06,1.7363]
[1734884348505,3.46,183.16,183.06,1.7363]
[1734884348706,3.46,183.16,183.07,1.6379]
[1734884348905,0.30147,183.1,183.07,1.6379]
[1734884349508,3.92147,183.1,183.05,1.6564]
[1734884350208,0.30147,183.1,183.05,1.6564]
[1734884350613,0.30147,183.1,183.07,2.7335]
[1734884351112,0.30147,183.1,183.05,1.6564]
[1734884352108,2.92147,183.16,183.05,1.6564]
[1734884352607,90.44345828,183.22,183.05,1.6564]
[1734884352805,0.91708686,183.21,183.05,35.23985828]
[1734884353015,90.44345828,183.22,183.06,5.18290994]
[1734884353209,3.62,183.21,183.06,5.18290994]
[1734884353408,3.62,183.21,183.07,5.18290994]
[1734884353609,3.62,183.21,183.08,5.18290994]
[1734884353912,3.62,183.21,183.05,1.6564]
[1734884354112,3.62,183.2,183.09,2.7331]
[1734884354303,3.62,183.2,183.1,1.6419]
[1734884354810,33.58345828,183.19,183.05,1.6564]
[1734884355412,33.58345828,183.19,183.06,5.19250357]
[1734884355707,33.58345828,183.16,183.07,5.19250357]
[1734884355911,33.58345828,183.13,183.01,1.6379]
[1734884356110,33.58345828,183.1,183.01,1.6379]
[1734884356313,33.58345828,183.07,183.02,5.19959219]
[1734884356507,3.62,183.06,183.02,5.19959219]
[1734884356712,3.62,183.06,182.96,89.21626216]
[1734884356914,33.58345828,183.04,182.96,89.21626216]
[1734884357311,33.58345828,182.98,182.88,89.21626216]
[1734884357510,3.62,182.97,182.88,89.21626216]
[1734884357919,3.62,182.97,182.89,5.21891545]
[1734884358118,3.62,182.97,182.88,89.21626216]
[1734884358315,33.58345828,182.95,182.88,89.21626216]
[1734884358810,33.58345828,182.95,182.81,4.9555]
[1734884359008,1.6412,183.01,182.81,4.9555]
[1734884359009,3.62,182.94,182.82,5.22666042]
[1734884359212,3.62,182.94,182.83,33.58345828]
[1734884359411,3.62,182.94,182.83,5.22666042]
[1734884359609,3.62,182.94,182.84,5.22666042]
[1734884359815,3.62,182.94,182.85,5.22666042]
[1734884360217,3.62,182.94,182.86,5.22666042]
[1734884360413,3.62,182.94,182.87,5.22666042]
[1734884360813,3.62,182.94,182.81,4.9555]
[1734884360814,3.62,182.94,182.88,5.22666042]
[1734884361017,3.62,182.94,182.81,4.9555]
[1734884361222,0.91843934,182.93,182.81,4.9555]
[1734884361423,0.91843934,182.93,182.82,5.23587354]
[1734884361624,0.91843934,182.93,182.83,5.23587354]
[1734884362022,33.58345828,182.89,182.75,89.21626216]
[1734884362313,33.58345828,182.86,182.76,5.2425934]
[1734884362623,4.53885542,182.85,182.71,3.2383]
[1734884362921,0.91894469,182.84,182.72,5.24629214]
[1734884363322,3.62,182.85,182.73,5.24629214]
[1734884363515,0.91892904,182.84,182.74,5.24629214]
[1734884363920,3.62,182.85,182.75,5.24629214]
[1734884364121,3.62,182.85,182.71,36.82175828]